bitfinex/quotes_SOLUSD_20241019
["timestamp","ask_amount","ask_price","bid_price","bid_amount"]
[1729351431399,23.776884,156.49,156.48,0.6405475]
[1729351437223,30.42761056,156.49,156.48,0.6405475]
[1729351437919,6.3898,156.5,156.48,0.6405475]
[1729351437920,20.0,156.5,156.48,0.6405475]
[1729351438093,6.65019934,156.49,156.48,0.6405475]
[1729351438296,13.04029934,156.49,156.48,0.6405475]
[1729351438492,33.04029934,156.49,156.48,0.6405475]
[1729351439020,50.42708334,156.49,156.48,0.6405475]
[1729351439617,56.81718334,156.49,156.48,0.6405475]
[1729351445824,26.65019934,156.49,156.48,0.6405475]
[1729351446120,20.0,156.49,156.48,0.6405475]
[1729351446521,6.64745332,156.51,156.48,0.6405475]
[1729351446724,7.83557207,156.52,156.48,0.6405475]
[1729351472924,23.776884,156.51,156.48,0.6405475]
[1729351473358,30.166184,156.51,156.48,0.6405475]
[1729351474856,23.776884,156.51,156.48,0.6405475]
[1729351508180,7.83557207,156.52,156.48,0.6405475]
[1729351513265,43.776884,156.6,156.48,0.6405475]
[1729351513665,16.3608,156.61,156.49,22.325]
[1729351515274,23.776884,156.6,156.49,22.325]
[1729351553407,16.3608,156.61,156.49,22.325]
[1729351553607,16.3608,156.61,156.48,0.6405475]
[1729351553608,28.66688754,156.6,156.48,0.6405475]
[1729351554192,6.2843,156.59,156.48,0.6405475]
[1729351554592,23.776884,156.58,156.48,0.6405475]
[1729351557919,6.2843,156.59,156.48,0.6405475]
[1729351560007,23.776884,156.58,156.48,0.6405475]
[1729351570124,23.776884,156.58,156.49,15.7386]
[1729351570328,16.3608,156.61,156.49,15.7386]
[1729351571512,14.13734643,156.63,156.49,15.7386]
[1729351571513,6.3973,156.63,156.5,14.44346006]
[1729351571712,15.6732,156.64,156.51,15.7386]
[1729351571921,15.6732,156.64,156.51,24.14416006]
[1729351572534,6.3973,156.63,156.51,15.7386]
[1729351572933,23.776884,156.62,156.51,15.7386]
[1729351584232,15.0275,156.61,156.48,0.6405475]
[1729351584443,23.776884,156.6,156.48,0.6405475]
[1729351584745,23.776884,156.58,156.48,0.6405475]
[1729351586453,23.776884,156.56,156.48,0.6405475]
[1729351596152,23.776884,156.56,156.48,0.5964675]
[1729351611946,23.776884,156.54,156.48,0.5964675]
[1729351612466,23.776884,156.56,156.48,0.5964675]
[1729351614667,15.0275,156.57,156.48,0.5964675]
[1729351615768,23.776884,156.56,156.48,0.5964675]
[1729351630378,23.776884,156.54,156.48,0.5964675]
[1729351657522,28.07479404,156.57,156.48,0.5964675]
[1729351657720,21.68779404,156.57,156.48,0.5964675]
[1729351658331,28.07469404,156.57,156.48,0.5964675]
[1729351658901,23.776884,156.56,156.48,0.5964675]
[1729351673217,23.776884,156.56,156.48,17.0649675]
[1729351680145,23.776884,156.56,156.48,0.5964675]
[1729351686139,30.164284,156.56,156.48,0.5964675]
[1729351686525,6.4776,156.55,156.48,0.5964675]
[1729351686719,6.3885,156.53,156.48,0.5964675]
[1729351686924,23.776884,156.52,156.48,0.5964675]
[1729351688746,2.21427352,156.51,156.48,0.5964675]
[1729351688948,25.99115752,156.5,156.48,0.5964675]
[1729351689248,2.21427352,156.49,156.48,0.5964675]
[1729351689430,25.99115752,156.49,156.48,0.5964675]
[1729351689632,23.776884,156.49,156.48,0.5964675]
[1729351705377,30.166984,156.49,156.48,0.5964675]
[1729351705677,36.83027492,156.49,156.48,0.5964675]
[1729351714773,30.44017492,156.49,156.48,0.5964675]
[1729351716660,23.776884,156.49,156.48,0.5964675]
[1729351716982,15.2196,156.52,156.48,0.5964675]
[1729351717304,15.4759,156.56,156.48,0.5964675]
[1729351717666,22.14632008,156.56,156.48,0.5964675]
[1729351718785,23.776884,156.55,156.48,0.5964675]
[1729351722269,30.164684,156.55,156.48,0.5964675]
[1729351729478,23.776884,156.53,156.48,0.5964675]
[1729351729685,23.776884,156.51,156.48,0.5964675]
[1729351730195,23.776884,156.49,156.48,0.5964675]
[1729351730486,30.166984,156.49,156.48,0.5964675]
[1729351733891,50.166984,156.49,156.48,0.5964675]
[1729351734374,30.166984,156.49,156.48,0.5964675]
[1729351734695,50.166984,156.49,156.48,0.5964675]
[1729351735073,80.166984,156.49,156.48,0.5964675]
[1729351736111,99.336984,156.49,156.48,0.5964675]
[1729351736403,6.3916,156.46,156.39,15.7545]
[1729351738379,30.168984,156.45,156.34,15.7545]
[1729351738795,23.776884,156.45,156.34,15.7545]
[1729351738970,23.776884,156.46,156.34,15.7545]
[1729351740501,23.776884,156.46,156.36,15.6966]
[1729351745499,7.94533265,156.47,156.38,15.0914]
[1729351747497,23.776884,156.46,156.38,15.0914]
[1729351748399,16.3237,156.51,156.38,15.0914]
[1729351748900,23.776884,156.5,156.38,15.0914]
[1729351750108,30.166584,156.5,156.38,15.0914]
[1729351751485,23.776884,156.48,156.38,15.0914]
[1729351756195,30.4421677,156.48,156.38,15.0914]
[1729351775602,39.369984,156.46,156.33,22.0372]
[1729351796544,23.776884,156.44,156.33,22.0372]
[1729351799641,6.3926,156.43,156.33,15.8386]
[1729351799860,39.055684,156.42,156.32,0.6405475]
[1729351800427,45.448684,156.42,156.32,0.6405475]
[1729351800634,23.776884,156.4,156.32,0.6405475]
[1729351801043,23.776884,156.41,156.32,0.6405475]
[1729351801343,23.776884,156.39,156.32,0.6405475]
[1729351803332,15.2788,156.42,156.32,0.6405475]
[1729351804937,23.776884,156.41,156.32,0.6405475]
[1729351805143,6.2236,156.44,156.33,15.4672]
[1729351806523,23.86425102,156.46,156.34,6.1522]
[1729351807944,23.776884,156.45,156.34,6.1522]
[1729351808150,6.66584324,156.49,156.35,16.0487]
[1729351808332,16.1397,156.5,156.37,16.0487]
[1729351808534,16.1397,156.5,156.38,8.2909994]
[1729351810433,6.3187,156.49,156.37,16.0487]
[1729351810832,23.776884,156.48,156.37,16.0487]
[1729351811153,31.80101592,156.48,156.33,22.4493]
[1729351811739,31.80101592,156.48,156.34,23.776884]
[1729351811941,8.02413192,156.48,156.36,30.177484]
[1729351812631,8.02413192,156.48,156.36,6.4006]
[1729351813044,6.3187,156.49,156.36,6.4006]
[1729351813444,23.776884,156.48,156.36,6.4006]
[1729351814437,6.3187,156.49,156.36,6.4006]
[1729351814637,24.16227407,156.5,156.36,6.4006]
[1729351815729,23.776884,156.49,156.36,6.4006]
[1729351827358,23.776884,156.47,156.36,6.4006]
[1729351848682,23.776884,156.47,156.36,9.14014684]
[1729351849679,23.776884,156.47,156.36,6.4006]
[1729351872102,15.5618,156.46,156.35,25.45561791]
[1729351872403,23.776884,156.45,156.35,22.71717135]
[1729351879208,15.5618,156.46,156.35,29.65237673]
[1729351892027,6.3018,156.48,156.36,23.776884]
[1729351892028,22.1523,156.48,156.36,23.776884]
[1729351892205,15.8505,156.48,156.36,39.33083322]
[1729351895527,15.8505,156.48,156.36,32.39562784]
[1729351895729,23.776884,156.47,156.36,8.61874384]
[1729351896620,30.132584,156.47,156.36,8.61874384]
[1729351903137,30.132584,156.47,156.35,35.85859023]
[1729351903344,30.132584,156.47,156.35,29.18640538]
[1729351920032,30.132584,156.47,156.35,22.2512]
[1729351921428,6.3914,156.46,156.35,16.0487]
[1729351921630,15.8795,156.44,156.34,16.48276442]
[1729351921942,23.776884,156.43,156.34,9.81053236]
[1729351928130,6.1886,156.42,156.34,9.81053236]
[1729351928358,23.776884,156.41,156.32,7.31040142]
[1729351928636,23.776884,156.41,156.32,0.6405475]
[1729351929966,6.1886,156.42,156.32,9.25929134]
[1729351940371,6.1886,156.42,156.32,0.6405475]
[1729351940372,23.776884,156.41,156.32,0.6405475]
[1729351942077,15.7287,156.4,156.32,0.6405475]
[1729351943360,23.776884,156.39,156.32,0.6405475]
[1729351946757,23.776884,156.37,156.32,0.6405475]
[1729351947352,23.776884,156.35,156.32,0.6405475]
[1729351947750,23.776884,156.33,156.32,0.6405475]
[1729351949255,38.953684,156.33,156.32,0.6405475]
[1729351951275,38.953684,156.33,156.19,21.7146]
[1729351951659,38.953684,156.33,156.19,30.33334384]
[1729351954079,38.953684,156.33,156.19,24.43709711]
[1729351960974,38.953684,156.33,156.2,23.776884]
[1729351963887,38.953684,156.33,156.2,23.276884]
[1729351966197,38.953684,156.33,156.19,24.43709711]
[1729351970393,38.953684,156.33,156.19,32.19422984]
[1729351970890,38.953684,156.33,156.2,23.776884]
[1729351985119,38.953684,156.33,156.19,32.19422984]
[1729351990117,38.953684,156.33,156.2,23.776884]
[1729351993503,38.953684,156.33,156.19,32.19422984]
[1729351996206,38.953684,156.33,156.2,23.776884]
[1729351997115,38.953684,156.33,156.19,32.19422984]
[1729352000217,38.953684,156.33,156.2,23.776884]
[1729352038854,15.1768,156.33,156.2,23.776884]
[1729352039054,6.3167,156.34,156.24,23.776884]
[1729352043137,6.3167,156.34,156.24,31.53401673]
[1729352045648,6.3167,156.34,156.23,6.1054]
[1729352046761,6.3167,156.34,156.23,8.90511743]
[1729352047664,6.3167,156.34,156.23,16.66225016]
[1729352048663,6.3167,156.34,156.24,23.776884]
[1729352048868,6.3167,156.34,156.24,31.54231977]
[1729352061064,38.917584,156.33,156.24,7.76543577]
[1729352074272,15.1407,156.33,156.24,7.76543577]
[1729352102091,23.776884,156.32,156.21,16.365]
[1729352102293,32.66540547,156.32,156.21,16.365]
[1729352103212,32.66540547,156.32,156.18,6.61787587]
[1729352103213,38.979184,156.29,156.18,6.61787587]
[1729352103514,38.979184,156.29,156.18,0.37700679]
[1729352103691,2.2122153,156.28,156.18,0.37700679]
[1729352103891,38.979184,156.29,156.18,0.37700679]
[1729352103892,2.2122153,156.27,156.18,0.37700679]
[1729352104102,2.2122153,156.26,156.18,0.37700679]
[1729352104321,2.2122153,156.25,156.18,0.37700679]
[1729352104516,2.2122153,156.24,156.18,0.37700679]
[1729352104724,38.979184,156.29,156.18,0.37700679]
[1729352111211,45.377684,156.29,156.18,0.37700679]
[1729352111620,23.776884,156.29,156.18,0.37700679]
[1729352111820,45.755584,156.27,156.18,0.37700679]
[1729352112226,52.154984,156.27,156.18,0.37700679]
[1729352116040,6.3997,156.26,156.18,0.37700679]
[1729352116246,23.776884,156.25,156.18,0.37700679]
[1729352116536,52.154784,156.27,156.18,0.37700679]
[1729352117334,21.9787,156.27,156.18,0.37700679]
[1729352119014,23.776884,156.26,156.18,0.37700679]
[1729352119217,15.4147,156.27,156.18,0.37700679]
[1729352119629,23.776884,156.26,156.18,0.37700679]
[1729352126627,30.278584,156.26,156.18,0.37700679]
[1729352127935,36.678184,156.26,156.18,0.37700679]
[1729352132442,23.776884,156.24,156.18,0.37700679]
[1729352132645,30.278584,156.26,156.18,0.37700679]
[1729352132944,23.776884,156.24,156.18,0.37700679]
[1729352136157,42.986884,156.24,156.18,0.37700679]
[1729352136366,39.018084,156.22,156.18,0.37700679]
[1729352163484,45.419284,156.22,156.18,0.37700679]
[1729352163983,6.4019,156.21,156.18,0.37700679]
[1729352164169,23.776884,156.2,156.18,0.37700679]
[1729352170282,30.179284,156.19,156.18,0.37700679]
[1729352172188,23.776884,156.19,156.18,0.37700679]
[1729352193818,30.179284,156.19,156.18,0.37700679]
[1729352195331,60.179284,156.19,156.18,0.37700679]
[1729352201230,36.4024,156.19,156.18,0.37700679]
[1729352202856,60.179284,156.19,156.18,0.37700679]
[1729352204249,30.179284,156.19,156.18,0.37700679]
[1729352206855,60.179284,156.19,156.18,0.37700679]
[1729352210256,99.389284,156.19,156.18,0.37700679]
[1729352210841,105.902184,156.19,156.18,0.37700679]
[1729352211044,69.389684,156.18,156.17,0.6405475]
[1729352211242,114.646584,156.18,156.17,0.6405475]
[1729352211645,121.28874142,156.18,156.17,0.6405475]
[1729352216077,91.28874142,156.18,156.17,0.6405475]
[1729352219059,121.28874142,156.18,156.17,0.6405475]
[1729352219267,56.64215742,156.18,156.17,0.6405475]
[1729352219452,36.64215742,156.18,156.17,0.6405475]
[1729352219960,6.64215742,156.18,156.17,0.6405475]
[1729352220171,13.04495742,156.18,156.17,0.6405475]
[1729352220757,36.82184142,156.18,156.17,0.6405475]
[1729352220977,13.04495742,156.18,156.17,0.6405475]
[1729352222277,6.64215742,156.18,156.17,0.6405475]
[1729352222779,8.89951963,156.19,156.17,0.6405475]
[1729352223852,23.776884,156.18,156.17,0.6405475]
[1729352224093,30.179684,156.18,156.17,0.6405475]
[1729352228461,23.776884,156.13,156.1,15.5636]
[1729352229191,6.4055,156.12,156.06,15.59]
[1729352230684,23.776884,156.1,156.06,15.59]
[1729352230893,23.776884,156.07,156.06,15.59]
[1729352231183,23.776884,156.08,156.02,15.59]
[1729352231390,16.377,156.16,156.02,15.59]
[1729352231391,23.776884,156.06,156.02,15.59]
[1729352231780,23.776884,156.07,156.02,15.59]
[1729352232193,23.776884,156.07,156.01,0.6405475]
[1729352232785,23.776884,156.04,156.01,0.6405475]
[1729352233095,23.776884,156.05,156.01,0.6405475]
[1729352233593,30.185184,156.05,156.01,0.6405475]
[1729352234588,30.185184,156.05,155.85,7.3259213]
[1729352234764,23.776884,156.05,155.86,23.776884]
[1729352234961,23.776884,156.05,155.88,23.776884]
[1729352235182,6.64660192,156.06,155.91,15.59]
[1729352235381,6.64660192,156.06,155.93,15.59]
[1729352235586,8.90302297,156.08,155.93,15.59]
[1729352235783,15.54745436,156.08,155.93,15.59]
[1729352236284,23.776884,156.07,155.93,15.59]
[1729352237592,23.776884,156.07,155.94,6.2178]
[1729352237798,23.776884,156.07,155.95,15.59]
[1729352244514,15.54745436,156.08,155.96,6.3059]
[1729352244813,8.90302297,156.08,155.97,15.9301]
[1729352245804,23.776884,156.07,155.97,15.9301]
[1729352246612,8.90302297,156.08,155.97,15.9301]
[1729352249321,23.776884,156.1,155.97,15.9301]
[1729352254893,23.776884,156.1,155.99,15.9674]
[1729352259225,23.776884,156.11,155.99,15.9674]
[1729352263526,23.776884,156.11,156.0,23.776884]
[1729352263825,6.64306359,156.12,156.0,23.776884]
[1729352264197,23.776884,156.11,155.99,15.9674]
[1729352265201,23.776884,156.09,155.99,15.9674]
[1729352265432,23.776884,156.07,155.99,15.9674]
[1729352266229,23.776884,156.07,155.95,23.57781371]
[1729352274809,22.45966141,156.08,155.96,23.776884]
[1729352276345,23.776884,156.07,155.96,23.776884]
[1729352277631,6.64396141,156.08,155.99,6.1598]
[1729352277832,6.4065,156.1,155.99,6.1598]
[1729352278050,15.8157,156.11,155.99,6.1598]
[1729352279345,15.8157,156.11,156.0,23.776884]
[1729352279638,6.64567295,156.13,156.02,23.776884]
[1729352279840,6.4065,156.14,156.02,23.776884]
[1729352280138,13.05151276,156.14,156.02,23.776884]
[1729352280945,23.776884,156.13,156.02,23.776884]
[1729352282328,13.05151276,156.14,156.02,23.776884]
[1729352282537,6.4065,156.14,156.02,23.776884]
[1729352283733,22.17469141,156.17,156.02,23.776884]
[1729352283938,22.17469141,156.17,156.04,23.776884]
[1729352284437,15.5294,156.17,156.04,23.776884]
[1729352284824,6.2198,156.18,156.05,15.1988]
[1729352285123,6.2198,156.18,156.06,23.776884]
[1729352285337,8.89951963,156.19,156.08,45.106884]
[1729352286230,16.3719,156.21,156.08,45.106884]
[1729352287512,6.446,156.22,156.08,45.106884]
[1729352287716,6.446,156.22,156.1,23.776884]
[1729352287918,6.64658841,156.23,156.08,45.106884]
[1729352288139,6.64658841,156.23,156.09,15.1988]
[1729352288341,6.64658841,156.23,156.1,23.776884]
[1729352288727,6.64658841,156.23,156.12,23.776884]
[1729352290535,30.178284,156.22,156.11,15.1988]
[1729352290740,23.776884,156.22,156.11,15.1988]
[1729352290912,30.178084,156.22,156.11,15.1988]
[1729352293155,23.776884,156.22,156.11,15.1988]
[1729352296348,6.64658841,156.23,156.11,15.1988]
[1729352297152,23.776884,156.22,156.11,15.1988]
[1729352299157,6.64658841,156.23,156.11,15.1988]
[1729352299564,23.776884,156.22,156.11,15.1988]
[1729352303759,6.64658841,156.23,156.11,15.1988]
[1729352303964,6.64658841,156.23,156.12,23.776884]
[1729352309954,6.64658841,156.23,156.11,15.1988]
[1729352310156,6.2145,156.21,156.11,15.1988]
[1729352310579,39.036284,156.2,156.07,15.0134]
[1729352310749,45.68310715,156.2,156.07,15.0134]
[1729352311071,23.776884,156.17,156.07,15.0134]
[1729352316982,23.776884,156.18,156.07,15.0134]
[1729352319468,27.8775,156.17,156.02,18.3759256]
[1729352319664,23.776884,156.16,156.02,15.0134]
[1729352320264,30.37232808,156.17,156.02,15.0134]
[1729352320757,30.37232808,156.17,156.03,23.776884]
[1729352320956,30.37232808,156.17,156.03,31.55185881]
[1729352323776,21.4739,156.17,156.03,23.776884]
[1729352325268,21.4739,156.17,156.05,23.776884]
[1729352326776,46.333884,156.21,156.07,23.776884]
[1729352326981,22.557,156.21,156.07,23.776884]
[1729352327287,22.557,156.21,156.09,23.776884]
[1729352327288,6.6365,156.21,156.09,23.776884]
[1729352332984,6.5473,156.24,156.09,23.776884]
[1729352339592,6.5473,156.24,156.11,23.776884]
[1729352340385,6.5473,156.24,156.13,23.776884]
[1729352340696,6.5473,156.24,156.15,23.776884]
[1729352341298,16.5610475,156.25,156.15,23.776884]
[1729352341474,0.6405475,156.25,156.15,23.776884]
[1729352342886,0.6405475,156.25,156.15,25.05696593]
[1729352343095,0.6405475,156.25,156.16,22.1427]
[1729352343402,0.6405475,156.25,156.17,25.05661376]
[1729352345477,0.6405475,156.25,156.17,37.4649358]
[1729352345674,0.6405475,156.25,156.19,23.776884]
[1729352345892,0.6405475,156.25,156.21,23.776884]
[1729352346903,0.6405475,156.25,156.2,23.776884]
[1729352348403,0.2119384,156.25,156.22,23.776884]
[1729352350408,0.2119384,156.25,156.21,23.776884]
[1729352350904,0.2119384,156.25,156.2,3.27464716]
[1729352351109,0.2119384,156.25,156.18,15.8593]
[1729352352100,0.2119384,156.25,156.18,20.45220349]
[1729352352294,0.2119384,156.25,156.19,30.63434689]
[1729352354392,0.2119384,156.25,156.2,7.50434859]
[1729352354592,0.2119384,156.25,156.21,31.82855221]
[1729352360726,0.2119384,156.25,156.18,19.17242519]
[1729352361922,0.2119384,156.25,156.18,27.2240934]
[1729352363112,0.2119384,156.25,156.19,31.82855221]
[1729352378132,0.2119384,156.25,156.19,8.05166821]
[1729352382444,0.2119384,156.25,156.18,3.31312519]
[1729352382627,0.2119384,156.25,156.16,6.22480618]
[1729352382947,0.2119384,156.25,156.15,8.05166821]
[1729352384428,6.4551,156.24,156.15,8.05166821]
[1729352384626,16.3702,156.23,156.15,8.05166821]
[1729352385036,16.3702,156.23,156.11,6.22480618]
[1729352385227,16.3702,156.23,156.11,17.58405439]
[1729352385436,16.3702,156.23,156.11,25.35451167]
[1729352385934,16.3702,156.23,156.12,23.776884]
[1729352386145,16.3702,156.23,156.12,31.82855221]
[1729352403351,16.3702,156.23,156.12,38.05335839]
[1729352403554,16.3702,156.23,156.14,23.776884]
[1729352403857,16.3702,156.23,156.16,23.776884]
[1729352407564,16.3702,156.23,156.16,31.82855221]
[1729352410978,16.3702,156.23,156.16,35.24269621]
[1729352411893,6.4551,156.24,156.16,35.24269621]
[1729352412086,6.4551,156.24,156.17,8.05166821]
[1729352412393,6.4551,156.24,156.18,23.776884]
[1729352413288,0.2119384,156.25,156.18,31.82855221]
[1729352415399,0.2119384,156.25,156.19,8.05166821]
[1729352415878,0.2119384,156.25,156.2,23.776884]
[1729352417176,0.2119384,156.25,156.17,23.776884]
[1729352417508,6.0471,156.24,156.16,11.18330853]
[1729352417710,16.4785,156.23,156.16,7.76916453]
[1729352418704,16.4785,156.23,156.16,15.82083274]
[1729352419790,16.4785,156.23,156.17,23.776884]
[1729352420100,16.4785,156.23,156.16,8.05166821]
[1729352422703,6.1834,156.22,156.1,20.94561643]
[1729352422883,6.1834,156.22,156.11,8.05166821]
[1729352423900,6.1834,156.22,156.12,23.776884]
[1729352426283,6.1834,156.22,156.14,23.776884]
[1729352426498,6.1834,156.22,156.16,23.776884]
[1729352426801,6.1834,156.22,156.16,31.82855221]
[1729352428713,0.2119384,156.25,156.16,31.82855221]
[1729352429586,0.2119384,156.25,156.14,15.8324]
[1729352429587,0.2119384,156.25,156.17,8.05166821]
[1729352429906,0.2119384,156.25,156.18,23.776884]
[1729352430198,0.2119384,156.25,156.18,31.82855221]
[1729352434914,0.2119384,156.25,156.18,35.24772996]
[1729352438093,0.2119384,156.25,156.19,8.05166821]
[1729352438295,0.2119384,156.25,156.2,23.776884]
[1729352438693,0.2119384,156.25,156.19,23.776884]
[1729352439408,0.2119384,156.25,156.18,11.18639647]
[1729352439612,0.2119384,156.25,156.18,7.76721872]
[1729352441986,0.2119384,156.25,156.19,23.776884]
[1729352445910,0.2119384,156.25,156.18,13.9920249]
[1729352446097,0.2119384,156.25,156.18,7.76721872]
[1729352450399,6.8120384,156.25,156.18,7.76721872]
[1729352452498,6.8120384,156.25,156.13,7.24639043]
[1729352453712,6.8120384,156.25,156.14,23.776884]
[1729352454104,6.8120384,156.25,156.14,31.02327443]
[1729352456911,6.8120384,156.25,156.14,23.776884]
[1729352459840,6.8120384,156.25,156.14,31.02327443]
[1729352461808,6.8120384,156.25,156.14,23.776884]
[1729352462004,6.8120384,156.25,156.14,30.177884]
[1729352462211,6.8120384,156.25,156.14,23.776884]
[1729352494451,6.8120384,156.25,156.13,3.37842356]
[1729352494634,6.8120384,156.25,156.11,23.776884]
[1729352495661,16.4634,156.22,156.1,26.11314895]
[1729352502150,16.4634,156.22,156.11,6.401]
[1729352504541,23.776884,156.21,156.11,6.401]
[1729352504746,6.314,156.2,156.11,6.401]
[1729352507940,6.314,156.2,156.07,6.401]
[1729352508346,16.4618,156.19,156.09,6.401]
[1729352508555,40.238684,156.19,156.07,23.776884]
[1729352512763,40.238684,156.19,156.07,31.02327443]
[1729352520278,16.4618,156.19,156.07,23.776884]
[1729352520492,6.314,156.2,156.1,15.0411]
[1729352520660,15.2858,156.23,156.11,31.02327443]
[1729352520860,15.2858,156.23,156.11,37.24808061]
[1729352522366,15.2858,156.23,156.13,23.776884]
[1729352522565,15.2858,156.23,156.11,37.24808061]
[1729352527692,15.2858,156.23,156.11,40.51779317]
[1729352532404,15.2858,156.23,156.13,23.776884]
[1729352542477,15.2858,156.23,156.15,23.776884]
[1729352542787,15.2858,156.23,156.13,23.776884]
[1729352547908,15.2858,156.23,156.13,31.02327443]
[1729352552607,15.2858,156.23,156.15,23.776884]
[1729352552811,15.2858,156.23,156.13,31.02327443]
[1729352562026,15.2858,156.23,156.12,23.776884]
[1729352564426,6.3589,156.22,156.11,9.49451874]
[1729352564637,38.809684,156.21,156.09,13.64739043]
[1729352564825,6.4493,156.2,156.09,13.64739043]
[1729352566028,6.4493,156.2,156.09,6.401]
[1729352569732,6.4493,156.2,156.07,23.776884]
[1729352583429,6.4493,156.2,156.07,31.02327443]
[1729352592758,6.4493,156.2,156.09,23.776884]
[1729352592930,6.4493,156.2,156.07,37.24808061]
[1729352593130,6.4493,156.2,156.11,23.776884]
[1729352597341,6.4493,156.2,156.1,15.4529]
[1729352597643,6.4493,156.2,156.08,15.01956102]
[1729352597953,6.4493,156.2,156.08,7.77317059]
[1729352600442,23.776884,156.19,156.07,23.776884]
[1729352600650,16.0145,156.18,156.07,23.776884]
[1729352602158,6.4736,156.17,156.06,15.4529]
[1729352605157,23.776884,156.16,156.04,6.401]
[1729352607653,23.776884,156.16,156.04,9.66695322]
[1729352609466,6.4736,156.17,156.05,23.776884]
[1729352609642,6.4736,156.17,156.06,15.776]
[1729352609843,6.4736,156.17,156.07,23.776884]
[1729352626479,16.0145,156.18,156.07,23.776884]
[1729352626783,6.2336,156.21,156.09,23.776884]
[1729352632855,6.2336,156.21,156.09,33.4910915]
[1729352633063,6.2336,156.21,156.09,27.0900915]
[1729352645300,23.776884,156.2,156.09,3.3132075]
[1729352645484,16.0996,156.19,156.06,15.776]
[1729352646089,6.5452,156.18,156.06,15.776]
[1729352684721,16.4892,156.16,156.03,6.407]
[1729352685031,6.1209,156.14,156.03,6.407]
[1729352688129,6.1209,156.14,156.03,9.69065743]
[1729352688617,6.1209,156.14,156.03,3.28365743]
[1729352688851,6.1209,156.14,156.02,15.6734]
[1729352691542,6.1209,156.14,156.02,18.98172841]
[1729352701963,23.776884,156.13,156.02,18.98172841]
[1729352702163,6.4055,156.12,156.02,15.6734]
[1729352702362,15.8306,156.12,156.02,15.6734]
[1729352704467,6.1209,156.14,156.03,23.776884]
[1729352733712,39.003084,156.13,156.02,22.91979043]
[1729352734007,23.776884,156.11,156.0,3.30865927]
[1729352734214,23.776884,156.11,155.98,16.5528]
[1729352735309,15.2262,156.1,155.98,16.5528]
[1729352736110,15.2262,156.1,155.99,23.776884]
[1729352736413,15.2262,156.1,155.99,31.13494656]
[1729352741390,6.5626,156.09,155.98,7.24639043]
[1729352741588,6.5626,156.09,155.97,19.44057972]
[1729352741792,6.5626,156.09,155.97,16.1575]
[1729352742939,6.5626,156.09,155.98,23.776884]
[1729352746110,6.5626,156.09,155.98,27.05665201]
[1729352752541,14.82646634,156.13,155.99,21.9485]
[1729352752723,14.82646634,156.13,156.0,23.776884]
[1729352753533,22.5495,156.18,156.01,15.3734]
[1729352753726,22.5495,156.18,156.04,23.776884]
[1729352753928,22.5495,156.18,156.06,23.776884]
[1729352755337,22.5495,156.18,156.06,29.66224573]
[1729352755536,22.5495,156.18,156.06,37.34448027]
[1729352760470,22.5495,156.18,156.08,23.776884]
[1729352760770,22.5495,156.18,156.08,30.92590567]
[1729352762243,6.4006,156.24,156.09,22.9531]
[1729352762244,6.4618,156.22,156.09,22.9531]
[1729352762577,6.4618,156.22,156.1,23.776884]
[1729352763649,6.4618,156.22,156.1,31.45911854]
[1729352763849,6.4618,156.22,156.1,37.34448027]
[1729352764785,6.4618,156.22,156.12,23.776884]
[1729352765272,0.2119384,156.25,156.14,23.776884]
[1729352765471,0.2119384,156.25,156.14,31.45911854]
[1729352770455,0.2119384,156.25,156.13,15.1136]
[1729352771467,0.2119384,156.25,156.13,22.79583454]
[1729352771973,0.2119384,156.25,156.14,23.776884]
[1729352781478,0.2119384,156.25,156.14,31.45911854]
[1729352785170,0.2119384,156.25,156.16,23.776884]
[1729352785381,0.2119384,156.25,156.18,23.776884]
[1729352786366,1.37703888,156.35,156.18,23.776884]
[1729352786565,20.0,156.36,156.18,23.776884]
[1729352786874,31.72136158,156.35,156.18,23.776884]
[1729352787185,38.39132738,156.35,156.18,23.776884]
[1729352787578,6.397,156.33,156.18,23.776884]
[1729352787780,23.776884,156.32,156.18,23.776884]
[1729352789371,22.6064,156.31,156.18,23.776884]
[1729352796709,22.6064,156.31,156.2,23.776884]